fUST/lending_fUST_20240729
["ID","MTS","AMOUNT","RATE_DAILY","PERIOD"]
[333565675,1722250239378,-693.86,0.00013972,2]
[333565676,1722250239390,-446.13915279,0.00013972,2]
[333565677,1722250239402,-698.95,0.00013972,2]
[333565678,1722250239413,-3542.3,0.00013972,2]
[333565679,1722250239424,-500.0,0.00013972,2]
[333565680,1722250239437,-500.0,0.00013972,2]
[333565681,1722250239447,-474.2913872,0.00013972,2]
[333565682,1722250239459,-1000.0,0.00014,2]
[333565683,1722250239469,-495.34680783,0.00014237,2]
[333565684,1722250239481,-172.07114882,0.00014237,2]
[333565685,1722250239492,-83991.5705246,0.00014238,2]
[333565686,1722250239504,-559.65,0.00014245,2]
[333565687,1722250239515,-500.0,0.00014246,2]
[333565688,1722250239525,-500.0,0.00014246,2]
[333565689,1722250239536,-500.0,0.00014246,2]
[333565690,1722250239547,-599.63838773,0.00014246,2]
[333565691,1722250239558,-500.0,0.00014246,2]
[333565692,1722250239568,-500.0,0.00014246,2]
[333565693,1722250239578,-951.13,0.00014246,2]
[333565694,1722250239589,-693.86,0.00014246,2]
[333565695,1722250239599,-698.95,0.00014246,2]
[333565696,1722250239610,-3542.3,0.00014246,2]
[333565697,1722250239621,-500.0,0.00014246,2]
[333565698,1722250239632,-500.0,0.00014246,2]
[333565699,1722250239643,-339.94585,0.00014247,2]
[333565700,1722250239654,-166.481559,0.00014247,2]
[333565701,1722250239665,-559.65,0.00014247,2]
[333565702,1722250239676,-72310.55721151,0.00014248,2]
[333565703,1722250239690,-150.112233,0.000143,2]
[333565704,1722250239701,-559.65,0.00014498,2]
[333565705,1722250239711,-500.0,0.00014499,2]
[333565706,1722250239722,-502.05441623,0.00014499,2]
[333565707,1722250239732,-456.48,0.00014499,2]
[333565708,1722250239742,-500.0,0.00014499,2]
[333565709,1722250239752,-500.0,0.00014499,2]
[333565710,1722250239763,-310.2755384,0.00014499,2]
[333565711,1722250239774,-292.63440764,0.0001452,2]
[333565712,1722250239785,-500.0,0.0001452,2]
[333565713,1722250239795,-500.0,0.0001452,2]
[333565714,1722250239805,-500.0,0.0001452,2]
[333565715,1722250239815,-951.13,0.0001452,2]
[333565721,1722250239938,-693.86,0.0001452,2]
[333565723,1722250239951,-698.95,0.0001452,2]
[333565725,1722250239961,-3542.3,0.0001452,2]
[333565727,1722250239970,-500.0,0.0001452,2]
[333565728,1722250239980,-500.0,0.0001452,2]
[333565729,1722250239989,-500.0,0.00014773,2]
[333565730,1722250239999,-500.0,0.00014794,2]
[333565731,1722250240008,-179.19835746,0.00014794,2]
[333565732,1722250240019,-500.0,0.00014794,2]
[333565734,1722250240029,-951.13,0.00014794,2]
[333565735,1722250240039,-693.86,0.00014794,2]
[333565736,1722250240048,-698.95,0.00014794,2]
[333565737,1722250240057,-3542.3,0.00014794,2]
[333565739,1722250240067,-500.0,0.00014794,2]
[333565741,1722250240077,-500.0,0.00014794,2]
[333565743,1722250240086,-200.0,0.00014992,2]
[333565745,1722250240096,-528.15050463,0.00015,2]
[333565746,1722250240105,-951.2964008,0.00015,2]
[333565748,1722250240115,-1761.73770981,0.00015,2]
[333565750,1722250240125,-150.112233,0.00015,2]
[333565752,1722250240135,-150.112233,0.00015,2]
[333565753,1722250240144,-1381.01587183,0.00015031,2]
[333565755,1722250240154,-500.0,0.00015047,2]
[333565757,1722250240163,-559.65,0.00015057,2]
[333565759,1722250240172,-41995.7852623,0.00015058,2]
[333565761,1722250240184,-500.0,0.00015068,2]
[333565762,1722250240196,-500.0,0.00015068,2]
[333565764,1722250240206,-951.13,0.00015068,2]
[333565766,1722250240215,-693.86,0.00015068,2]
[333565768,1722250240225,-698.95,0.00015068,2]
[333565770,1722250240238,-3542.3,0.00015068,2]
[333565772,1722250240248,-500.0,0.00015068,2]
[333565774,1722250240258,-500.0,0.00015068,2]
[333565776,1722250240267,-503.53226289,0.0001508,2]
[333565778,1722250240276,-500.0,0.0001508,2]
[333565779,1722250240286,-500.0,0.0001508,2]
[333565781,1722250240295,-500.0,0.0001508,2]
[333565783,1722250240304,-500.0,0.0001508,2]
[333565785,1722250240314,-503.33264163,0.00015081,2]
[333565787,1722250240324,-500.0,0.00015081,2]
[333565789,1722250240333,-500.0,0.00015081,2]
[333565791,1722250240343,-500.2828353,0.00015081,2]
[333565793,1722250240352,-383.23682345,0.00015081,2]
[333565795,1722250240362,-2000.0,0.0001513,2]
[333565797,1722250240372,-151.0,0.0001522,2]
[333565799,1722250240381,-83991.5705246,0.0001522,2]
[333565800,1722250240391,-88888.0,0.0001523,2]
[333565802,1722250240401,-500.0,0.00015305,2]
[333565804,1722250240410,-500.0,0.00015315,2]
[333565806,1722250240420,-500.0,0.00015316,2]
[333565808,1722250240430,-559.65,0.0001532,2]
[333565810,1722250240443,-559.65,0.0001532,2]
[333565812,1722250240453,-500.0,0.00015321,2]
[333565814,1722250240462,-559.65,0.00015329,2]
[333565816,1722250240472,-559.65,0.00015329,2]
[333565818,1722250240482,-427.85638501,0.00015342,2]
[333565820,1722250240492,-500.0,0.00015342,2]
[333565822,1722250240502,-951.13,0.00015342,2]
[333565824,1722250240511,-693.86,0.00015342,2]
[333565826,1722250240521,-698.95,0.00015342,2]
[333565828,1722250240531,-3542.3,0.00015342,2]
[333565829,1722250240541,-409.10509523,0.00015342,2]
[333565831,1722250240550,-500.0,0.00015342,2]
[333565833,1722250240560,-243.55343926,0.00015354,2]
[333565835,1722250240571,-500.0,0.00015354,2]
[333565837,1722250240580,-246.02,0.00015355,2]
[333565839,1722250240590,-500.0,0.00015519,2]
[333565841,1722250240600,-151.0,0.00015519,2]
[333565843,1722250240609,-500.0,0.00015529,2]
[333565845,1722250240619,-500.0,0.00015529,2]
[333565847,1722250240629,-500.0,0.00015595,2]
[333565849,1722250240638,-150.112233,0.000156,2]
[333565851,1722250240650,-500.0,0.00015606,2]
[333565853,1722250240661,-1039.23813633,0.00015608,2]
[333565855,1722250240671,-559.65,0.00015615,2]
[333565857,1722250240681,-500.0,0.00015616,2]
[333565859,1722250240691,-951.13,0.00015616,2]
[333565860,1722250240700,-693.86,0.00015616,2]
[333565861,1722250240710,-698.95,0.00015616,2]
[333565862,1722250240719,-3542.3,0.00015616,2]
[333565864,1722250240729,-500.0,0.00015616,2]
[333565866,1722250240741,-4505.2861066,0.00015636,2]
[333565868,1722250240752,-500.0,0.00015697,2]
[333565870,1722250240763,-1252.69673581,0.00015698,5]
[333565872,1722250240772,-41995.7852623,0.00015698,2]
[333565874,1722250240782,-500.0,0.00015698,2]
[333565876,1722250240791,-500.0,0.00015698,2]
[333565878,1722250240800,-500.0,0.00015707,2]
[333565880,1722250240810,-500.0,0.00015707,2]
[333565882,1722250240819,-559.65,0.00015707,2]
[333565884,1722250240831,-2277.39949897,0.00015708,3]
[333565886,1722250240842,-1990.82429951,0.00015708,2]
[333565888,1722250240853,-1172.04350055,0.00015708,2]
[333565890,1722250240864,-2123.86369588,0.00015708,2]
[333565892,1722250240873,-4238.78518136,0.00015708,2]
[333565894,1722250240883,-4018.01957075,0.00015708,2]
[333565896,1722250240893,-1437.78611875,0.00015708,2]
[333565898,1722250240903,-1645.8353511,0.00015708,2]
[333565900,1722250240912,-500.0,0.00015708,2]
[333565902,1722250240923,-500.0,0.00015708,2]
[333565904,1722250240934,-500.0,0.00015708,2]
[333565905,1722250240944,-437.3665385,0.0001574,2]
[333565907,1722250240953,-500.0,0.00015869,2]
[333565909,1722250240963,-500.0,0.0001589,2]
[333565911,1722250240973,-951.13,0.0001589,2]
[333565913,1722250240983,-693.86,0.0001589,2]
[333565915,1722250240992,-698.95,0.0001589,2]
[333565917,1722250241002,-3542.3,0.0001589,2]
[333565919,1722250241011,-500.0,0.0001589,2]
[333565921,1722250241021,-3062.45863511,0.00016,2]
[333565923,1722250241031,-500.0,0.00016143,2]
[333565925,1722250241041,-500.0,0.00016164,2]
[333565927,1722250241051,-951.13,0.00016164,2]
[333565929,1722250241062,-693.86,0.00016164,2]
[333565931,1722250241073,-698.95,0.00016164,2]
[333565933,1722250241082,-3542.3,0.00016164,2]
[333565935,1722250241092,-500.0,0.00016164,2]
[333565936,1722250241102,-150.112233,0.000163,2]
[333565938,1722250241111,-150.112233,0.000163,2]
[333565940,1722250241122,-150.0,0.00016307,2]
[333565942,1722250241133,-1410.0,0.00016307,2]
[333565944,1722250241144,-400.0,0.00016362,2]
[333565946,1722250241156,-559.65,0.00016416,2]
[333565948,1722250241167,-500.0,0.00016417,2]
[333565950,1722250241176,-300.0,0.00016438,3]
[333565952,1722250241187,-202.25888299,0.00016438,3]
[333565954,1722250241197,-464.77973053,0.00016438,2]
[333565956,1722250241206,-951.13,0.00016438,2]
[333565957,1722250241215,-693.86,0.00016438,2]
[333565959,1722250241225,-698.95,0.00016438,2]
[333565961,1722250241234,-3542.3,0.00016438,2]
[333565963,1722250241244,-500.0,0.00016438,2]
[333565965,1722250241254,-151.0,0.0001644,2]
[333565967,1722250241264,-500.0,0.00016449,2]
[333565969,1722250241274,-559.65,0.0001669,2]
[333565971,1722250241283,-500.0,0.00016691,2]
[333565973,1722250241294,-951.13,0.00016712,2]
[333565974,1722250241305,-693.86,0.00016712,2]
[333565975,1722250241317,-698.95,0.00016712,2]
[333565976,1722250241328,-3542.3,0.00016712,2]
[333565977,1722250241339,-500.0,0.00016712,2]
[333565978,1722250241350,-41995.7852623,0.00016963,2]
[333565979,1722250241362,-500.0,0.00016965,2]
[333565980,1722250241371,-1039.23813624,0.00016974,2]
[333565981,1722250241381,-951.13,0.00016986,2]
[333565982,1722250241391,-693.86,0.00016986,2]
[333565983,1722250241403,-698.95,0.00016986,2]
[333565984,1722250241413,-3542.3,0.00016986,2]
[333565985,1722250241424,-500.0,0.00016986,2]
[333565986,1722250241436,-150.112233,0.00017,2]
[333565987,1722250241445,-1381.01587183,0.00017176,2]
[333565988,1722250241457,-500.0,0.00017239,2]
[333565989,1722250241469,-951.13,0.0001726,2]
[333565990,1722250241478,-693.86,0.0001726,2]
[333565991,1722250241488,-698.95,0.0001726,2]
[333565992,1722250241498,-3542.3,0.0001726,2]
[333565993,1722250241507,-589.48752224,0.0001726,2]
[333565994,1722250241517,-500.0,0.00017513,2]
[333565995,1722250241528,-951.13,0.00017534,2]
[333565996,1722250241539,-693.86,0.00017534,2]
[333565997,1722250241551,-698.95,0.00017534,2]
[333565998,1722250241562,-3542.3,0.00017534,2]
[333565999,1722250241571,-500.0,0.00017546,2]
[333566000,1722250241581,-150.112233,0.000176,2]
[333566001,1722250241592,-150.112233,0.000176,2]
[333566002,1722250241601,-168.810698,0.00017762,2]
[333566003,1722250241611,-150.366448,0.00017762,2]
[333566004,1722250241620,-500.0,0.00017787,2]
[333566005,1722250241630,-951.13,0.00017808,2]
[333566007,1722250241640,-693.86,0.00017808,2]
[333566008,1722250241652,-698.95,0.00017808,2]
[333566009,1722250241663,-3542.3,0.00017808,2]
[333566011,1722250241672,-216.79398217,0.00018,2]
[333566013,1722250241684,-500.0,0.00018061,2]
[333566014,1722250241694,-559.65,0.00018081,2]
[333566016,1722250241705,-951.13,0.00018082,2]
[333566018,1722250241716,-693.86,0.00018082,2]
[333566020,1722250241727,-698.95,0.00018082,2]
[333566023,1722250241738,-3542.3,0.00018082,2]
[333566025,1722250241749,-600.0,0.00018139,2]
[333566027,1722250241758,-168.810698,0.00018206,2]
[333566029,1722250241767,-150.112233,0.000183,2]
[333566031,1722250241777,-500.0,0.00018335,2]
[333566033,1722250241786,-1039.23813624,0.0001834,2]
[333566035,1722250241796,-951.13,0.00018356,2]
[333566037,1722250241806,-693.86,0.00018356,2]
[333566039,1722250241815,-698.95,0.00018356,2]
[333566041,1722250241825,-3542.3,0.00018356,2]
[333566043,1722250241834,-500.0,0.00018609,2]
[333566045,1722250241845,-951.13,0.0001863,2]
[333566047,1722250241859,-693.86,0.0001863,2]
[333566049,1722250241869,-698.95,0.0001863,2]
[333566051,1722250241879,-3542.3,0.0001863,2]
[333566053,1722250241888,-559.65,0.00018631,2]
[333566055,1722250241899,-168.810698,0.0001865,2]
[333566057,1722250241909,-35001.9180202,0.00018773,2]
[333566059,1722250241918,-500.0,0.00018834,2]
[333566061,1722250241931,-500.0,0.00018834,2]
[333566064,1722250241946,-283.71249105,0.00018834,2]
[333566066,1722250241956,-379.24073197,0.00018883,2]
[333566068,1722250241966,-150.112233,0.000189,2]
[333566070,1722250241976,-150.112233,0.000189,2]
[333566072,1722250241986,-951.13,0.00018904,2]
[333566074,1722250241996,-693.86,0.00018904,2]
[333566076,1722250242005,-698.95,0.00018904,2]
[333566078,1722250242015,-3542.3,0.00018904,2]
[333566080,1722250242025,-156.04710466,0.00019,2]
[333566082,1722250242036,-250.0,0.00019041,2]
[333566084,1722250242046,-1162.16976726,0.00019155,2]
[333566086,1722250242057,-33879.28777727,0.00019167,2]
[333566088,1722250242066,-9639.05525324,0.00019167,2]
[333566090,1722250242076,-20752.6436984,0.00019177,2]
[333566092,1722250242086,-6999.1698205,0.00019177,2]
[333566094,1722250242095,-277.13700097,0.00019177,2]
[333566096,1722250242105,-500.0,0.00019178,2]
[333566098,1722250242114,-500.0,0.00019178,2]
[333566100,1722250242124,-500.0,0.00019178,2]
[333566102,1722250242134,-500.0,0.00019178,2]
[333566104,1722250242144,-500.0,0.00019178,2]
[333566107,1722250242156,-500.0,0.00019178,2]
[333566109,1722250242166,-951.13,0.00019178,2]
[333566111,1722250242176,-693.86,0.00019178,2]
[333566113,1722250242188,-698.95,0.00019178,2]
[333566115,1722250242198,-3542.3,0.00019178,2]
[333566117,1722250242208,-186.144718,0.00019178,2]
[333566119,1722250242217,-296.88487601,0.00019256,2]
[333566121,1722250242226,-1762.71873065,0.00019256,2]
[333566123,1722250242236,-1382.47255271,0.00019256,2]
[333566125,1722250242245,-2138.42102512,0.00019256,2]
[333566127,1722250242256,-156.0,0.000193,2]
[333566129,1722250242266,-1407.0,0.00019307,2]
[333566131,1722250242275,-151.0,0.00019307,2]
[333566133,1722250242285,-1381.01587183,0.00019321,2]
[333566135,1722250242294,-951.13,0.00019452,2]
[333566137,1722250242304,-693.86,0.00019452,2]
[333566139,1722250242314,-698.95,0.00019452,2]
[333566141,1722250242324,-3542.3,0.00019452,2]
[333566143,1722250242334,-4180.04028286,0.00019477,2]
[333566146,1722250242345,-1500.0,0.00019477,2]
[333566148,1722250242355,-1039.23813624,0.00019705,2]
[333566150,1722250242366,-951.13,0.00019726,2]
[333566152,1722250242376,-693.86,0.00019726,2]
[333566154,1722250242386,-698.95,0.00019726,2]
[333566156,1722250242396,-3542.3,0.00019726,2]
[333566158,1722250242406,-559.65,0.00019978,2]
[333566160,1722250242416,-559.65,0.00019999,2]
[333566162,1722250242425,-248.23618916,0.0002,2]
[333566164,1722250242438,-154.62117811,0.0002,2]
[333566166,1722250242448,-823.48181136,0.0002,2]
[333566168,1722250242460,-156.30380148,0.0002,2]
[333566170,1722250242470,-4180.5464947,0.0002,2]
[333566172,1722250242480,-294.0516063,0.0002,2]
[333566174,1722250242489,-1015.30682734,0.0002,2]
[333566176,1722250242499,-204.43979736,0.0002,2]
[333566178,1722250242508,-154.63660398,0.0002,2]
[333566181,1722250242519,-302.33493269,0.0002,2]
[333566183,1722250242531,-435.0,0.0002,2]
[333566185,1722250242543,-302.33493269,0.0002,2]
[333566187,1722250242554,-951.23945052,0.0002,2]
[333566189,1722250242564,-693.98347859,0.0002,2]
[333566191,1722250242574,-699.1492,0.0002,2]
[333566193,1722250242584,-3542.41507093,0.0002,2]
[333566195,1722250242593,-307.11244283,0.0002,2]
[333566206,1722250242680,-800.0,0.00020112,2]
[333566208,1722250242695,-150.112233,0.000202,4]
[333566210,1722250242705,-302.33493269,0.000202,2]
[333566212,1722250242717,-302.33493269,0.000202,2]
[333566214,1722250242727,-2895.90316603,0.00020329,30]
[333566216,1722250242736,-302.33493269,0.000204,2]
[333566218,1722250242746,-302.33493269,0.000204,2]
[333566220,1722250242755,-320.632392,0.00020548,2]
[333566222,1722250242765,-302.33493269,0.000206,2]
[333566224,1722250242774,-302.33493269,0.000206,2]
[333566226,1722250242784,-339.94585,0.00020707,2]
[333566228,1722250242793,-492.27173157,0.00020721,2]
[333566230,1722250242803,-154.63660398,0.00020721,2]
[333566232,1722250242812,-302.33493269,0.000208,2]
[333566234,1722250242822,-302.33493269,0.000208,2]
[333566236,1722250242832,-667.580387,0.00021,2]
[333566239,1722250242842,-453.50239903,0.00021,4]
[333566241,1722250242855,-453.50239903,0.00021,4]
[333566243,1722250242865,-559.65,0.00021047,2]
[333566246,1722250242875,-559.65,0.00021047,2]
[333566248,1722250242884,-559.65,0.00021047,2]
[333566250,1722250242895,-559.65,0.00021047,2]
[333566252,1722250242905,-559.86326479,0.00021047,2]
[333566255,1722250242914,-1039.23813624,0.00021071,2]
[333566258,1722250242924,-453.50239903,0.000212,4]
[333566260,1722250242935,-578.44326508,0.000212,4]
[333566262,1722250242947,-453.50239903,0.000214,4]
[333566264,1722250242956,-1381.01587183,0.00021465,2]
[333566266,1722250242966,-150.112233,0.000215,3]
[333566269,1722250242975,-151.0,0.00021532,2]
[333566272,1722250242984,-151.0,0.00021581,2]
[333566275,1722250242994,-453.50239903,0.000216,4]
[333566278,1722250243003,-155.99033626,0.00021757,2]
[333566281,1722250243013,-155.99033626,0.00021783,2]
[333566284,1722250243023,-453.12538526,0.000218,4]
[333566287,1722250243032,-500.0,0.00021918,5]
[333566290,1722250243042,-500.0,0.00021918,5]
[333566293,1722250243052,-500.0,0.00021918,5]
[333566296,1722250243061,-500.0,0.00021918,5]
[333566299,1722250243071,-500.0,0.00021918,5]
[333566302,1722250243080,-155.99033626,0.00022041,2]
[333566306,1722250243089,-881.37001086,0.0002217,2]
[333566309,1722250243098,-155.99033626,0.00022199,2]
[333566312,1722250243108,-1000.0,0.00022222,2]
[333566315,1722250243118,-155.99033631,0.00022407,2]
[333566318,1722250243128,-1039.23813624,0.00022437,2]
[333566321,1722250243138,-150.112233,0.000228,2]
[333566325,1722250243149,-1381.01587183,0.0002361,2]
[333566329,1722250243160,-160.0,0.00023759,3]
[333566332,1722250243171,-1039.23813624,0.00023803,2]
[333566335,1722250243180,-1073.53259249,0.00024,30]
[333566338,1722250243192,-308.1195623,0.00024096,2]
[333566341,1722250243201,-150.112233,0.000241,4]
[333566344,1722250243211,-7966.31089195,0.00024363,2]
[333566347,1722250243222,-6889.943266,0.00024363,2]
[333566349,1722250243232,-154.62117811,0.00024363,15]
[333566351,1722250243243,-160.0,0.00024429,4]
[333566353,1722250243253,-1200.0,0.00024443,2]
[333566355,1722250243263,-500.0,0.00024658,2]
[333566357,1722250243274,-380.0,0.00024658,2]
[333566359,1722250243283,-200.0,0.00024658,15]
[333566361,1722250243292,-152.7,0.000249,31]
[333566363,1722250243302,-152.7,0.000249,31]
[333566365,1722250243311,-152.7,0.000249,31]
[333566367,1722250243320,-152.7,0.000249,31]
[333566370,1722250243330,-152.7,0.000249,31]
[333566372,1722250243339,-152.7,0.000249,31]
[333566374,1722250243349,-152.7,0.000249,31]
[333566376,1722250243358,-152.7,0.000249,31]
[333566378,1722250243367,-152.7,0.000249,31]
[333566380,1722250243377,-152.7,0.000249,31]
[333566382,1722250243386,-152.7,0.000249,31]
[333566384,1722250243395,-152.7,0.000249,31]
[333566386,1722250243405,-152.7,0.000249,31]
[333566388,1722250243415,-152.7,0.000249,31]
[333566390,1722250243424,-152.7,0.000249,31]
[333566391,1722250243435,-152.7,0.000249,31]
[333566394,1722250243444,-152.7,0.000249,31]
[333566395,1722250243454,-152.7,0.000249,31]
[333566398,1722250243464,-154.62117811,0.00025,2]
[333566400,1722250243473,-23156.16866142,0.00025,30]
[333566402,1722250243483,-363.72517928,0.00025,2]
[333566404,1722250243492,-154.62117811,0.00025,2]
[333566406,1722250243502,-772.16810131,0.00025,2]
[333566408,1722250243511,-6372.30496392,0.00025,2]
[333566410,1722250243520,-155.59070176,0.00025,2]
[333566412,1722250243530,-160.0,0.000251,5]
[333566414,1722250243539,-1039.23813624,0.00025168,2]
[333566416,1722250243549,-152.7,0.000253,31]
[333566418,1722250243558,-152.7,0.000253,31]
[333566420,1722250243567,-152.7,0.000253,31]
[333566422,1722250243577,-152.7,0.000253,31]
[333566424,1722250243587,-152.7,0.000253,31]
[333566426,1722250243596,-152.7,0.000253,31]
[333566428,1722250243605,-152.7,0.000253,31]
[333566430,1722250243615,-152.7,0.000253,31]
[333566431,1722250243624,-152.7,0.000253,31]
[333566434,1722250243635,-152.7,0.000253,31]
[333566436,1722250243647,-152.7,0.000253,31]
[333566438,1722250243658,-152.7,0.000253,31]
[333566440,1722250243669,-152.7,0.000253,31]
[333566442,1722250243680,-152.7,0.000253,31]
[333566445,1722250243691,-152.7,0.000253,31]
[333566447,1722250243701,-152.7,0.000253,31]
[333566449,1722250243711,-152.7,0.000253,31]
[333566451,1722250243721,-150.112233,0.000254,7]
[333566453,1722250243730,-152.7,0.000257,31]
[333566455,1722250243740,-152.7,0.000257,31]
[333566457,1722250243750,-152.7,0.000257,31]
[333566459,1722250243759,-152.7,0.000257,31]
[333566461,1722250243769,-152.7,0.000257,31]
[333566463,1722250243778,-152.7,0.000257,31]
[333566465,1722250243788,-152.7,0.000257,31]
[333566467,1722250243798,-152.7,0.000257,31]
[333566469,1722250243809,-152.7,0.000257,31]
[333566471,1722250243820,-152.7,0.000257,31]
[333566473,1722250243830,-152.7,0.000257,31]
[333566475,1722250243839,-152.7,0.000257,31]
[333566477,1722250243851,-152.7,0.000257,31]
[333566479,1722250243866,-152.7,0.000257,31]
[333566482,1722250243876,-152.7,0.000257,31]
[333566484,1722250243886,-152.7,0.000257,31]
[333566486,1722250243895,-152.7,0.000257,31]
[333566488,1722250243906,-1381.01587183,0.00025755,2]
[333566490,1722250243915,-160.0,0.0002577,6]
[333566491,1722250243925,-152.7,0.000262,31]
[333566494,1722250243935,-152.7,0.000262,31]
[333566496,1722250243945,-152.7,0.000262,31]
[333566498,1722250243955,-152.7,0.000262,31]
[333566500,1722250243964,-152.7,0.000262,31]
[333566502,1722250243974,-152.7,0.000262,31]
[333566504,1722250243984,-152.7,0.000262,31]
[333566506,1722250243997,-152.7,0.000262,31]
[333566508,1722250244007,-152.7,0.000262,31]
[333566511,1722250244019,-152.7,0.000262,31]
[333566513,1722250244031,-152.7,0.000262,31]
[333566515,1722250244042,-152.7,0.000262,31]
[333566517,1722250244052,-152.7,0.000262,31]
[333566519,1722250244063,-152.7,0.000262,31]
[333566521,1722250244072,-152.7,0.000262,31]
[333566523,1722250244082,-152.7,0.000262,31]
[333566525,1722250244092,-152.7,0.000262,31]
[333566527,1722250244102,-160.0,0.0002644,7]
[333566529,1722250244111,-160.61365924,0.0002644,5]
[333566531,1722250244121,-1039.23813624,0.00026534,2]
[333566533,1722250244131,-152.7,0.000266,31]
[333566535,1722250244141,-152.7,0.000266,31]
[333566538,1722250244152,-152.7,0.000266,31]
[333566540,1722250244163,-152.7,0.000266,31]
[333566542,1722250244174,-152.7,0.000266,31]
[333566544,1722250244185,-152.7,0.000266,31]
[333566546,1722250244194,-152.7,0.000266,31]
[333566548,1722250244204,-152.7,0.000266,31]
[333566550,1722250244214,-152.7,0.000266,31]
[333566552,1722250244224,-152.7,0.000266,31]
[333566554,1722250244235,-152.7,0.000266,31]
[333566556,1722250244244,-152.7,0.000266,31]
[333566558,1722250244254,-152.7,0.000266,31]
[333566560,1722250244264,-152.7,0.000266,31]
[333566563,1722250244274,-152.7,0.000266,31]
[333566565,1722250244283,-152.7,0.000266,31]
[333566567,1722250244293,-152.7,0.000266,31]
[333566569,1722250244302,-150.112233,0.000267,7]
[333566571,1722250244312,-1400.0,0.00026754,2]
[333566573,1722250244321,-603.5628677,0.00026765,2]
[333566575,1722250244330,-1000.0,0.00027,2]
[333566577,1722250244340,-180.0,0.00027,2]
[333566579,1722250244349,-339.94585,0.00027167,2]
[333566581,1722250244359,-430.6615011,0.00027178,2]
[333566583,1722250244368,-590.7412604,0.00027178,2]
[333566585,1722250244377,-306.6875328,0.00027178,2]
[333566587,1722250244387,-296.7754684,0.00027178,2]
[333566589,1722250244396,-206.8246195,0.00027178,2]
[333566591,1722250244406,-155.8045593,0.00027178,2]
[333566593,1722250244415,-301.00516353,0.00027362,2]
[333566595,1722250244425,-245.226004,0.00027397,7]
[333566597,1722250244434,-663.54749988,0.00027397,2]
[333566599,1722250244445,-663.54749988,0.00027397,2]
[333566601,1722250244454,-663.54749988,0.00027397,2]
[333566603,1722250244464,-663.54749988,0.00027397,2]
[333566605,1722250244473,-663.54749988,0.00027397,2]
[333566607,1722250244482,-663.54749988,0.00027397,2]
[333566609,1722250244491,-663.54749988,0.00027397,2]
[333566611,1722250244502,-663.54749988,0.00027397,2]
[333566613,1722250244511,-663.54749988,0.00027397,2]
[333566615,1722250244520,-663.54749988,0.00027397,2]
[333566617,1722250244530,-6250.0,0.00027397,120]
[333566619,1722250244539,-336.95031754,0.000274,2]
[333566621,1722250244548,-5308.80312147,0.00027528,2]
[333566623,1722250244558,-301.00516353,0.00027659,2]
[333566625,1722250244568,-180.0,0.00027671,2]
[333566627,1722250244578,-14982.70394923,0.0002788,2]
[333566629,1722250244588,-4913.84,0.000279,7]
[333566631,1722250244597,-1381.01587183,0.000279,2]
[333566633,1722250244607,-1039.23813624,0.000279,2]
[333566635,1722250244617,-216.56845654,0.00028,5]